{"text_format":"1","workbook":"xlsx","n_sheets":4,"sheets":["1.2","1.16","1.17","1.18"],"not_rendered":{"charts":11,"images":1,"macros":0,"external_links":1,"defined_names":240,"comments":0,"pivot_tables":0},"unopened":[],"bounds":{"document_bytes":16777216,"sheet_cells":100000,"rows_first":2000,"rows_last":500,"rows_between":2000,"halvings":0,"cell_chars":16384,"cell_head_chars":4096},"cells_cut":0,"cells_raw":0,"read":"whole","date_system":"1900"}

{"sheet":"1.2","index":0,"n_rows":116,"n_cols":6,"rows_kept":116,"cut":false,"hidden":false,"merged":[]}
[]
[]
[null,"TERTIARY STUDENTS IN PORTUGAL",null,null,null,"TERTIARY STUDENTS IN PORTUGAL"]
[null,"Proportion by field of education (%)",null,null,null,"Proportion by field of education (%)"]
[]
[null,"Field","1998",2012]
[null,"Teacher training and education science",{"$f":"+'1.17'!C5","v":11.9},{"$f":"+'1.17'!D5","v":5.4}]
[null,"Humanities and arts",{"$f":"+'1.17'!C6","v":8.4},{"$f":"+'1.17'!D6","v":8.9}]
[null,"Social sciences, business, and law",{"$f":"+'1.17'!C7","v":38.299999999999997},{"$f":"+'1.17'!D7","v":31.8}]
[null,"Science, mathematics, and computing",{"$f":"+'1.17'!C8","v":8.9},{"$f":"+'1.17'!D8","v":7.3}]
[null,"Engineering, manufacturing, and construction",{"$f":"+'1.17'!C9","v":18.899999999999999},{"$f":"+'1.17'!D9","v":22.1}]
[null,"Agriculture and veterinary",{"$f":"+'1.17'!C10","v":3},{"$f":"+'1.17'!D10","v":1.8}]
[null,"Health and welfare",{"$f":"+'1.17'!C11","v":6.9},{"$f":"+'1.17'!D11","v":16.3}]
[null,"Services",{"$f":"+'1.17'!C12","v":3.7},{"$f":"+'1.17'!D12","v":6.4}]
[null,"Unknown",{"$f":"+'1.17'!C13","v":0},{"$f":"+'1.17'!D13","v":0}]
[null,"Tertiary education: levels 5-6 of ISCED97"]
[null,"Source: Eurostat"]
[]
[]
[]
["Playing with other background colors"]
[]
[]
[]
[null,"TERTIARY STUDENTS IN PORTUGAL",null,null,null,"TERTIARY STUDENTS IN PORTUGAL"]
[null,"Proportion by field of education (%)",null,null,null,"Proportion by field of education (%)"]
[]
[null,"Field","1998",2012]
[null,"Teacher training and education science",{"$f":"+C7","v":11.9},{"$f":"+D7","v":5.4}]
[null,"Humanities and arts",{"$f":"+C8","v":8.4},8.9]
[null,"Social sciences, business, and law",{"$f":"+C9","v":38.299999999999997},31.8]
[null,"Science, mathematics, and computing",{"$f":"+C10","v":8.9},7.3]
[null,"Engineering, manufacturing, and construction",{"$f":"+C11","v":18.899999999999999},22.1]
[null,"Agriculture and veterinary",{"$f":"+C12","v":3},1.8]
[null,"Health and welfare",{"$f":"+C13","v":6.9},16.3]
[null,"Services",{"$f":"+C14","v":3.7},6.4]
[null,"Unknown",{"$f":"+C15","v":0},0]
[null,"Tertiary education: levels 5-6 of ISCED97"]
[null,"Source: Eurostat"]
[]
[]
[]
[]
[]
[null,"TERTIARY STUDENTS IN PORTUGAL",null,null,null,"TERTIARY STUDENTS IN PORTUGAL"]
[null,"Proportion by field of education (%)",null,null,null,"Proportion by field of education (%)"]
[]
[null,"Field","1998",2012]
[null,"Teacher training and education science",{"$f":"+C29","v":11.9},{"$f":"+D29","v":5.4}]
[null,"Humanities and arts",{"$f":"+C30","v":8.4},8.9]
[null,"Social sciences, business, and law",{"$f":"+C31","v":38.299999999999997},31.8]
[null,"Science, mathematics, and computing",{"$f":"+C32","v":8.9},7.3]
[null,"Engineering, manufacturing, and construction",{"$f":"+C33","v":18.899999999999999},22.1]
[null,"Agriculture and veterinary",{"$f":"+C34","v":3},1.8]
[null,"Health and welfare",{"$f":"+C35","v":6.9},16.3]
[null,"Services",{"$f":"+C36","v":3.7},6.4]
[null,"Unknown",{"$f":"+C37","v":0},0]
[null,"Tertiary education: levels 5-6 of ISCED97"]
[null,"Source: Eurostat"]
[]
[]
[]
[]
[null,"TERTIARY STUDENTS IN PORTUGAL",null,null,null,"TERTIARY STUDENTS IN PORTUGAL"]
[null,"Proportion by field of education (%)",null,null,null,"Proportion by field of education (%)"]
[]
[null,"Field","1998",2012]
[null,"Teacher training and education science",{"$f":"+C49","v":11.9},{"$f":"+D49","v":5.4}]
[null,"Humanities and arts",{"$f":"+C50","v":8.4},8.9]
[null,"Social sciences, business, and law",{"$f":"+C51","v":38.299999999999997},31.8]
[null,"Science, mathematics, and computing",{"$f":"+C52","v":8.9},7.3]
[null,"Engineering, manufacturing, and construction",{"$f":"+C53","v":18.899999999999999},22.1]
[null,"Agriculture and veterinary",{"$f":"+C54","v":3},1.8]
[null,"Health and welfare",{"$f":"+C55","v":6.9},16.3]
[null,"Services",{"$f":"+C56","v":3.7},6.4]
[null,"Unknown",{"$f":"+C57","v":0},0]
[null,"Tertiary education: levels 5-6 of ISCED97"]
[null,"Source: Eurostat"]
[]
[]
[]
[]
[null,"TERTIARY STUDENTS IN PORTUGAL",null,null,null,"TERTIARY STUDENTS IN PORTUGAL"]
[null,"Proportion by field of education (%)",null,null,null,"Proportion by field of education (%)"]
[]
[null,"Field","1998",2012]
[null,"Teacher training and education science",{"$f":"+C68","v":11.9},{"$f":"+D68","v":5.4}]
[null,"Humanities and arts",{"$f":"+C69","v":8.4},8.9]
[null,"Social sciences, business, and law",{"$f":"+C70","v":38.299999999999997},31.8]
[null,"Science, mathematics, and computing",{"$f":"+C71","v":8.9},7.3]
[null,"Engineering, manufacturing, and construction",{"$f":"+C72","v":18.899999999999999},22.1]
[null,"Agriculture and veterinary",{"$f":"+C73","v":3},1.8]
[null,"Health and welfare",{"$f":"+C74","v":6.9},16.3]
[null,"Services",{"$f":"+C75","v":3.7},6.4]
[null,"Unknown",{"$f":"+C76","v":0},0]
[null,"Tertiary education: levels 5-6 of ISCED97"]
[null,"Source: Eurostat"]
[]
[]
[]
[]
[null,"TERTIARY STUDENTS IN PORTUGAL",null,null,null,"TERTIARY STUDENTS IN PORTUGAL"]
[null,"Proportion by field of education (%)",null,null,null,"Proportion by field of education (%)"]
[]
[null,"Field","1998",2012]
[null,"Teacher training and education science",{"$f":"+C87","v":11.9},{"$f":"+D87","v":5.4}]
[null,"Humanities and arts",{"$f":"+C88","v":8.4},8.9]
[null,"Social sciences, business, and law",{"$f":"+C89","v":38.299999999999997},31.8]
[null,"Science, mathematics, and computing",{"$f":"+C90","v":8.9},7.3]
[null,"Engineering, manufacturing, and construction",{"$f":"+C91","v":18.899999999999999},22.1]
[null,"Agriculture and veterinary",{"$f":"+C92","v":3},1.8]
[null,"Health and welfare",{"$f":"+C93","v":6.9},16.3]
[null,"Services",{"$f":"+C94","v":3.7},6.4]
[null,"Unknown",{"$f":"+C95","v":0},0]
[null,"Tertiary education: levels 5-6 of ISCED97"]
[null,"Source: Eurostat"]

{"sheet":"1.16","index":1,"n_rows":12,"n_cols":5,"rows_kept":12,"cut":false,"hidden":false,"merged":[]}
[]
[null,"Data"]
[]
[null,"Area","1998","2010"]
[null,"Teacher Training",11.9,5.4,"Teacher training"]
[null,"Humanities",8.4,8.9,"Humanities"]
[null,"Social Sciences",38.299999999999997,31.8,"Social Sciences"]
[null,"Science",8.9,7.3,"Science"]
[null,"Engineering",18.899999999999999,22.1,"Engineering"]
[null,"Agriculture",3,1.8,"Agriculture"]
[null,"Health",6.9,16.3,"Health"]
[null,"Services",3.7,6.4,"Services"]

{"sheet":"1.17","index":2,"n_rows":17,"n_cols":5,"rows_kept":17,"cut":false,"hidden":false,"merged":[]}
[]
[null,"Data"]
[]
[null,"Area","1998","2010"]
[null,"Teacher Training",11.9,5.4,"Teacher training"]
[null,"Humanities",8.4,8.9,"Humanities"]
[null,"Social Sciences",38.299999999999997,31.8,"Social Sciences"]
[null,"Science",8.9,7.3,"Science"]
[null,"Engineering",18.899999999999999,22.1,"Engineering"]
[null,"Agriculture",3,1.8,"Agriculture"]
[null,"Health",6.9,16.3,"Health"]
[null,"Services",3.7,6.4,"Services"]
[]
[]
[null,"HEALTH ATTRACTS MORE STUDENTS"]
[null,"Proportion of students at the tertiary level"]
[null,"by field of knowledge"]

{"sheet":"1.18","index":3,"n_rows":119,"n_cols":17,"rows_kept":119,"cut":false,"hidden":false,"merged":[]}
[null,null,"L1","L2","L1 Desc","L2 Desc","Amount"]
[null,null,"FOOD","Food at home","Cereals and bakery products","Cereals and cereal products",176]
[null,null,"",null,null,"Bakery products",343]
[null,null,"",null,"Meats, poultry, fish, and eggs","Beef",232]
[null,null,"",null,null,"Pork",177]
[null,null,"",null,null,"Other meats",123]
[null,null,"",null,null,"Poultry",172]
[null,null,"",null,null,"Fish and seafood",129]
[null,null,"",null,null,"Eggs",58]
[null,null,"",null,"Dairy products","Fresh milk and cream",147]
[null,null,"",null,null,"Other dairy products",276]
[null,null,"",null,"Fruits and vegetables","Fresh fruits",274]
[null,null,"",null,null,"Fresh vegetables",240]
[null,null,"",null,null,"Processed fruits",109]
[null,null,"",null,null,"Processed vegetables",133]
[null,null,"",null,"Other food at home","Sugar and other sweets",139]
[null,null,"",null,null,"Fats and oils",115]
[null,null,"",null,null,"Miscellaneous foods",702]
[null,null,"",null,null,"Nonalcoholic beverages",375]
[null,null,"",null,null,"Food prep. by consumer unit, out-of-town trips",51]
[null,null,"","Food away from home","Food away from home","Food away from home",2787]
[null,null,"ALCOHOLIC BEVERAGES","Alcoholic beverages","Alcoholic beverages","Alcoholic beverages",463]
[null,null,"HOUSING","Shelter","Owned dwellings","Mortgage interest and charges",2953]
[null,null,"",null,null,"Property taxes",1903]
[null,null,"",null,null,"Maintenance, rep., ins., oth. exp., owned dwelling",1293]
[null,null,"",null,null,"Rented dwellings",3631]
[null,null,"",null,"Other lodging","Other lodging",710]
[null,null,"","Utilities, fuels, and public services","Natural gas","Natural gas",439]
[null,null,"",null,"Electricity","Electricity",1484]
[null,null,"",null,"Fuel oil and other fuels","Fuel oil and other fuels",152]
[null,null,"",null,"Telephone services","Residential phone service, VOIP, and phone cards",353]
[null,null,"",null,null,"Cellular phone service",963]
[null,null,"",null,"Water and other public services","Water and other public services",530]
[null,null,"","Household operations","Personal services","Personal services",366]
[null,null,"",null,"Other household expenses","Other household expenses",808]
[null,null,"","Housekeeping supplies","Laundry and cleaning supplies","Laundry and cleaning supplies",148]
[null,null,"",null,"Other household products","Other household products",354]
[null,null,"",null,"Postage and stationery","Postage and stationery",131]
[null,null,"","Household furnishings and equipment","Household textiles","Household textiles",96]
[null,null,"",null,"Furniture","Furniture",387]
[null,null,"",null,"Floor coverings","Floor coverings",18]
[null,null,"",null,"Major appliances","Major appliances",233]
[null,null,"",null,"Small appliances, misc. housewares","Small appliances, misc. housewares",106]
[null,null,"",null,"Miscellaneous household equipment","Miscellaneous household equipment",740]
[null,null,"APPAREL AND SERVICES","Apparel, Men and boys","Apparel, Men, 16 and over","Apparel, Men, 16 and over",326]
[null,null,"",null,"Apparel, Boys, 2 to 15","Apparel, Boys, 2 to 15",104]
[null,null,"","Apparel, Women and girls","Apparel, Women, 16 and over","Apparel, Women, 16 and over",551]
[null,null,"",null,"Apparel, Girls, 2 to 15","Apparel, Girls, 2 to 15",105]
[null,null,"","Apparel, Children under 2","Apparel, Children under 2","Apparel, Children under 2",76]
[null,null,"","Footwear","Footwear","Footwear",367]
[null,null,"","Other apparel products and services","Other apparel products and services","Other apparel products and services",256]
[null,null,"TRANSPORTATION","Vehicle purchases (net outlay)","Vehicle purchases: Cars and trucks, new","Vehicle purchases: Cars and trucks, new",1562]
[null,null,"",null,"Vehicle purchases: Cars and trucks, used","Vehicle purchases: Cars and trucks, used",1739]
[null,null,"","Gasoline and motor oil","Gasoline and motor oil","Gasoline and motor oil",2468]
[null,null,"","Other vehicle expenses","Vehicle finance charges","Vehicle finance charges",208]
[null,null,"",null,"Vehicle maintenance and repairs","Vehicle maintenance and repairs",836]
[null,null,"",null,"Vehicle insurance","Vehicle insurance",1112]
[null,null,"",null,"Vehicle. rent., leas., licen., oth. charges","Vehicle. rent., leas., licen., oth. charges",567]
[null,null,"","Public transportation","Public transportation","Public transportation",581]
[null,null,"HEALTHCARE","Health insurance","Health insurance","Health insurance",2868]
[null,null,"","Medical services","Medical services","Medical services",790]
[null,null,"","Drugs: Prescription and nonprescription","Drugs: Prescription and nonprescription","Drugs: Prescription and nonprescription",486]
[null,null,"","Medical supplies","Medical supplies","Medical supplies",146]
[null,null,"ENTERTAINMENT","Entertainment: fees and admissions","Entertainment: fees and admissions","Entertainment: fees and admissions",636]
[null,null,"","Audio and visual equipment and services","Audio and visual equipment and services","Audio and visual equipment and services",1051]
[null,null,"","Pets, toys, and playground equipment","Pets","Pets",507]
[null,null,"","Pets, toys, and playground equipment","Toys, hobbies, and playground equipment","Toys, hobbies, and playground equipment",127]
[null,null,"","Entertainment: other supplies, equip., & services","Entertainment: other supplies, equip., & services","Entertainment: other supplies, equip., & services",407]
[null,null,"PERSONAL CARE PRODUCTS AND SERVICES","Personal care products and services","Personal care products and services","Personal care products and services",645]
[null,null,"READING","Reading","Reading","Reading",103]
[null,null,"EDUCATION","Education","Education","Education",1236]
[null,null,"TOBACCO PRODUCTS AND SMOKING SUPPLIES","Tobacco products and smoking supplies","Tobacco products and smoking supplies","Tobacco products and smoking supplies",319]
[null,null,"MISCELLANEOUS EXPENDITURES","Miscellaneous expenditures","Miscellaneous expenditures","Miscellaneous expenditures",782]
[null,null,"CASH CONTRIBUTIONS","Cash contributions","Cash contributions","Cash contributions",1788]
[null,null,"PERSONAL INSURANCE AND PENSIONS","Life and other personal insurance","Life and other personal insurance","Life and other personal insurance",327]
[null,null,"","Pensions and Social Security","Pensions and Social Security","Pensions and Social Security",5399,null,null,null,null,null,null,{"$f":"UPPER(C76)","v":""}]
[null,null,null,null,null,null,null,null,null,null,null,null,null,""]
[null,null,"",null,null,null,null,null,null,null,null,null,null,""]
[null,null,"",null,null,null,null,null,null,null,null,null,null,""]
[null,null,"",null,null,null,null,null,null,null,null,null,null,""]
[null,null,null,null,null,null,null,null,null,null,null,null,null,null,null,null,176]
[null,null,null,null,null,null,null,null,null,null,null,null,null,null,null,null,343]
[null,null,null,null,null,null,null,null,null,null,null,null,null,null,null,null,232]
[null,null,null,null,null,null,null,null,null,null,null,null,null,null,null,null,177]
[null,null,null,null,null,null,null,null,null,null,null,null,null,null,null,null,123]
[null,null,null,null,null,null,null,null,null,null,null,null,null,null,null,null,172]
[null,null,null,null,null,null,null,null,null,null,null,null,null,null,null,null,129]
[null,null,null,null,null,null,null,null,null,null,null,null,null,null,null,null,58]
[null,null,null,null,null,null,null,null,null,null,null,null,null,null,null,null,147]
[null,null,null,null,null,null,null,null,null,null,null,null,null,null,null,null,276]
[null,null,null,null,null,null,null,null,null,null,null,null,null,null,null,null,274]
[null,null,null,null,null,null,null,null,null,null,null,null,null,null,null,null,240]
[null,null,null,null,null,null,null,null,null,null,null,null,null,null,null,null,109]
[null,null,null,null,null,null,null,null,null,null,null,null,null,null,null,null,133]
[]
[]
[]
[]
[]
[]
[]
[]
[]
[]
[]
[]
[]
[]
[]
[]
[]
[]
[]
[]
[]
[]
[]
["Note: The chart above is a treemap. If you can't see it, you probably don't have Excel 2016/365"]
["Please note that we only need one quantitative column, but the tree structure must be well-defined in the text columns."]